Cogmind - Beta 16 @@@ ROGUE MODE // 2025.11.17 @ 17:07:54 Player: H3-MLN Result: Destroyed by Y-54 Guardian with Gatling Laser Performance ------------- Evolutions (3) 1500 Regions Visited (16) 3200 Robots Destroyed (317) 1585 Value Destroyed (14007) 14007 Prototype IDs (50) 1000 Alien Tech Used (0) 0 Bonus (8099) 8099 TOTAL SCORE: 29391 Bonus ------- Triggered High Security 500 High Alert Combat Kills 4179 Follower Combat Kills 814 Entered Garrisons 600 Used RIF Installer 2000 Aligned with FarCom 300 Friendly Fire -294 Cogmind --------- Core Integrity 0/700 Matter 264/300 Energy 310/310 System Corruption 25% Temperature Warm (114) Movement Walking (185) Ox1 Location -7/Storage Parts ------- > --- POWER (1) -------- Heavy Deuterium Engine (fused) > --- PROPULSION (5) --- Carbon-fiber Leg Improved Titanium Leg Biometal Leg > --- UTILITY (4) ------ Coolant Injector High-capacity Storage Unit Core Analyzer Improved Light Armor Plating > --- WEAPON (3) ------- Gatling Laser Gatling Laser Minigun > --- INVENTORY (20) --- Improved Deuterium Engine Heavy Deuterium Engine Improved Heat Sink Huge Storage Unit High-capacity Matter Pod (162) Transmission Jammer System Shield High-powered Tractor Beam Improved Field Recycling Unit (158) PSU Rigger Improved Spread Laser Minigun Minigun Hypervelocity Gauss Rifle Gauss Cannon AWS/Autocannon Remote Datajack Powered Hammer Peak State ------------ > --- POWER ------------ Light Antimatter Reactor > --- PROPULSION ------- Aluminum Leg Myomer Leg Myomer Leg Myomer Leg Biometal Leg > --- UTILITY ---------- High-capacity Storage Unit Core Analyzer Decoy Drone Bay > --- WEAPON ----------- Hypervelocity Gauss Rifle Heavy Mass Driver > --- INVENTORY -------- High-capacity Matter Pod Improved Light Armor Plating Improved Medium Armor Plating Improved Shield Generator Hacking Suite Hacking Suite Relay Coupler [NC] Relay Coupler [Grunt] Relay Coupler [Grunt] Relay Coupler [Heavy] Improved Field Recycling Unit PSU Rigger Heavy Mass Driver AWS/Autocannon Heavy Missile Launcher Remote Datajack Powered Hammer [Rating: 82] Favorites ----------- Power Ion Engine Engine Ion Engine Power Core Nuclear Core Reactor Light Antimatter Reactor Propulsion Aluminum Leg Leg Aluminum Leg Utility High-capacity Storage Unit Device Cooling System Storage High-capacity Storage Unit Processor Core Analyzer Hackware Relay Coupler [NC] Protection Hardened Light Armor Plating Weapon Minigun Energy Gun Advanced Beam Rifle Energy Cannon Beam Cannon Ballistic Gun Minigun Ballistic Cannon Heavy Mass Driver Launcher Rocket Launcher Special Weapon Remote Datajack Impact Weapon Powered Hammer Slashing Weapon Katana Special Melee Weapon Datajack Build | -11 -10 -10 -9 -9 -9 -8 -8 -8 -8 -8 -7 -7 -7 -7 -7 -7 ------- Run | Yrd Mat Min Mat Min Exi Min Mat Gar Mat Gar Fac Was Fac Gar Fac Sto Slots Evolved 6 | . . . 2 . . . 2 . . . 2 . . . . . Power . | . . . . . . . . . . . . . . . . . Propulsion 3 | . . . 1 . . . 1 . . . 1 . . . . . Utility 2 | . . . 1 . . . . . . . 1 . . . . . Weapon 1 | . . . . . . . 1 . . . . . . . . . Parts Attached 230 | 7 9 2 31 1 3 2 14 27 17 27 8 2 8 20 41 11 Power 25 | 1 1 . 6 1 . 1 1 3 1 1 . . 2 2 4 1 Engine 17 | 1 1 . 6 . . 1 1 1 . . . . 2 . 3 1 Core 6 | . . . . 1 . . . 1 1 1 . . . 1 1 . Reactor 2 | . . . . . . . . 1 . . . . . 1 . . Propulsion 59 | 2 2 1 7 . . 1 4 6 5 8 2 . 1 8 10 2 Treads . | . . . . . . . . . . . . . . . . . Leg 59 | 2 2 1 7 . . 1 4 6 5 8 2 . 1 8 10 2 Wheel . | . . . . . . . . . . . . . . . . . Hover . | . . . . . . . . . . . . . . . . . Flight . | . . . . . . . . . . . . . . . . . Utility 79 | 2 1 . 10 . . . 5 9 4 14 3 2 4 5 17 3 Device 21 | 1 . . 5 . . . . 2 2 3 2 1 1 . 4 . Storage 7 | 1 1 . 1 . . . . . . . . . 1 1 2 . Processor 6 | . . . 1 . . . 1 . . 1 . . . . 1 2 Hackware 27 | . . . . . . . 1 5 . 9 . 1 . 3 8 . Protection 18 | . . . 3 . . . 3 2 2 1 1 . 2 1 2 1 Artifact . | . . . . . . . . . . . . . . . . . Weapon 67 | 2 5 1 8 . 3 . 4 9 7 4 3 . 1 5 10 5 Energy Gun 14 | 1 1 . 1 . . . 3 3 2 . . . . . 1 2 Energy Cannon 5 | . 1 . 2 . . . . . . . . . . . 2 . Ballistic Gun 27 | 1 2 1 4 . . . 1 3 5 2 2 . . 1 2 3 Ballistic Cannon 7 | . . . . . . . . . . . . . 1 3 3 . Launcher 7 | . 1 . 1 . 1 . . 1 . 1 1 . . . 1 . Special Weapon 2 | . . . . . . . . . . 1 . . . . 1 . Impact Weapon 1 | . . . . . . . . . . . . . . 1 . . Slashing Weapon 3 | . . . . . 1 . . 2 . . . . . . . . Piercing Weapon . | . . . . . . . . . . . . . . . . . Special Melee Weapon 1 | . . . . . 1 . . . . . . . . . . . Unidentified Prototypes 9 | . . . 3 . . . 1 . 1 . . . . 1 3 . Corrupted Parts 2 | . . . . . . . . . . . . . . 2 . . System Corruption 4 | . . . . . . . . . . . . . . 4 . . Parts Lost 63 | . 4 . 10 . . 1 7 11 2 7 . . . 1 19 1 Power 11 | . 1 . 3 . . . 1 1 . . . . . 1 4 . Propulsion 28 | . 2 . 4 . . . 1 5 2 4 . . . . 9 1 Utility 11 | . . . 2 . . 1 3 2 . 1 . . . . 2 . Weapon 13 | . 1 . 1 . . . 2 3 . 2 . . . . 4 . Highest Loss Streak 10 | . 1 . 2 . . 1 7 4 1 2 . . . 1 10 1 To Critical Strikes 1 | . . . . . . . . . 1 . . . . . . . Average Backups 16 | 1 8 16 18 19 18 17 16 16 16 16 16 16 16 16 19 17 Power . | . . . . . . . . . . . . . . . . 2 Propulsion . | . . . 2 2 1 1 . . . . . . . . 1 . Utility 8 | . 2 5 8 10 9 9 8 10 9 8 10 10 9 10 10 7 Weapon 6 | . 5 10 6 6 6 6 6 5 7 6 5 5 6 5 6 6 Tool/Special . | . . . . . . . . . . . . . . . . . Unused Backups 52 | . 3 . 8 . 1 . 4 9 3 5 2 . . 4 7 6 Power 7 | . 1 . . . . . . . . . . . . 2 2 2 Propulsion . | . . . . . . . . . . . . . . . . . Utility 34 | . 2 . 1 . 1 . 1 9 3 4 2 . . 2 5 4 Weapon 11 | . . . 7 . . . 3 . . 1 . . . . . . Tool/Special . | . . . . . . . . . . . . . . . . . Average Slot Usage (%) 92 | . 99 100 94 100 100 90 94 81 95 96 99 100 99 92 88 78 Engine 5 | . 14 14 10 7 . 9 8 5 . . . . 4 4 4 6 Core 2 | . . . . 3 11 1 . . . 8 7 7 2 1 . . Leg 31 | . 27 28 29 33 33 33 36 21 32 34 38 38 38 37 37 21 Device 8 | . 14 14 11 11 11 11 6 7 9 6 6 7 9 4 2 11 Storage 9 | . 14 14 11 11 11 11 9 9 9 9 7 7 7 7 7 7 Processor 2 | . . . . . . . 1 . . 4 7 7 7 7 7 . Hackware 2 | . . . . . . . 1 5 . 1 . 6 1 3 8 4 Protection 5 | . . . 9 11 11 1 4 5 9 3 7 . 2 5 2 3 Energy Gun 4 | . 5 . 1 . . . 10 14 9 3 . . . . . 4 Energy Cannon 3 | . 6 13 9 11 . 10 2 . . . . . . . 1 . Ballistic Gun 10 | . 16 14 10 10 . 8 12 8 16 17 22 15 15 3 . 16 Ballistic Cannon 1 | . . . . . . . . . . . . . 4 5 6 . Peak Build Rating 82 | 7 9 10 25 20 25 25 35 41 42 45 43 46 51 82 82 53 Average Rating 33 | 5 7 9 17 18 22 23 29 30 39 36 40 44 49 55 73 47 On Entrance 30 | . 7 8 10 18 20 25 23 35 39 38 34 43 45 51 82 33 Avg Prop Armor Cover (%) 3 | . . . . . . . . . . . . . . 3 . . Naked Turns . | . . . . . . . . . . . . . . . . . Heaviest Build 155 | 14 50 50 62 58 58 63 64 65 71 70 64 61 78 93 155 70 Greatest Support 124 | 20 20 20 33 33 33 38 48 50 50 50 68 68 78 113 124 78 Greatest Overweight (x) 15 | . 4 2 15 1 1 1 1 5 2 2 1 . . 2 2 1 Average Overweight (x) . | . 1 2 1 1 1 1 1 2 1 1 . . . . . . Largest Inventory Capacity 25 | 8 20 20 25 20 20 20 20 20 20 20 20 20 20 20 25 20 Average Capacity 20 | 7 16 20 20 20 20 20 20 20 20 20 20 20 20 20 23 20 Most Carried 25 | 2 12 20 20 20 20 20 20 20 20 20 20 20 20 20 25 20 Average Carried 19 | 1 8 17 19 20 19 20 19 19 19 19 19 19 19 19 22 19 Final Capacity 20 | 8 20 20 20 20 20 20 20 20 20 20 20 20 20 20 20 20 Final Carried 20 | 2 12 19 20 20 20 20 20 20 20 20 20 19 20 20 19 20 Class Distribution -------------------- 37% | Mutant 11% | Scavenger-Mutant 9% | Scavenger-Tank 9% | Scavenger-Gunner 8% | Bothacker-Mutant 7% | Bothacker-Gunner 4% | Bothacker-Tank 3% | Tank Dominant Class ---------------- Mutant | -10/Materials Mutant | -10/Mines Mutant | -9/Materials Mutant | -9/Mines Mutant | -9/Exiles Mutant | -8/Mines Gunner | -8/Materials Commander-Mutant | -8/Garrison Scavenger-Tank | -8/Materials Scavenger-Gunner | -8/Garrison Scavenger-Tank | -7/Factory Scavenger-Gunner | -7/Waste Scavenger-Gunner | -7/Factory Scavenger-Mutant | -7/Garrison Scavenger-Gunner | -7/Factory Gunner | -7/Storage Resources | -11 -10 -10 -9 -9 -9 -8 -8 -8 -8 -8 -7 -7 -7 -7 -7 -7 ----------- Run | Yrd Mat Min Mat Min Exi Min Mat Gar Mat Gar Fac Was Fac Gar Fac Sto Matter Collected 10410 | 279 379 206 702 167 . 234 442 749 664 1333 745 . 133 1050 2568 759 Remotely 472 | . . . . . . . . . . . . . . . 315 157 Salvage Created 11596 | 98 450 20 1645 300 . 210 1131 739 1302 945 690 . 133 1093 2163 677 Parts 585 | 5 30 13 88 30 . 5 41 49 61 53 36 . 3 42 93 36 Haulers Intercepted 11 | . 1 . 6 . . . 1 . 2 . . . . . . 1 Recyclers Shooed 11 | . 2 . 1 . . 1 2 . . . . . 1 . 2 2 Parts Field Recycled 20 | . . . . . . . . . . . . . 14 6 . . Retrieved Matter 473 | . . . . . . . . . . . . . 341 132 . . Parts Self-Destructed . | . . . . . . . . . . . . . . . . . Prevented . | . . . . . . . . . . . . . . . . . Parts Restored . | . . . . . . . . . . . . . . . . . Kills | -11 -10 -10 -9 -9 -9 -8 -8 -8 -8 -8 -7 -7 -7 -7 -7 -7 ------- Run | Yrd Mat Min Mat Min Exi Min Mat Gar Mat Gar Fac Was Fac Gar Fac Sto Combat Hostiles Destroyed 234 | . 9 6 25 10 . 3 18 27 19 23 7 . 1 26 51 9 Melee 4 | . . . . . . . . . . 3 . . . 1 . . Guns 110 | . 6 . 11 2 . 1 18 15 19 20 4 . 1 2 2 9 Cannons 49 | . . . 12 . . . . . . . . . . 9 28 . AOE 68 | . 3 6 2 8 . 2 . 11 . . 3 . . 12 21 . Classes Destroyed 18 | 2 8 . 2 . . . 2 2 1 . . . . . 1 . Worker 10 | . 1 . 2 1 . . . . . . 1 . . . 5 . Builder 7 | . 3 . . 1 . . . . 1 . 1 . . . 1 . Tunneler 4 | 2 1 . . . . . . . . . . . . . 1 . Hauler 11 | . 1 . 6 . . . 1 . 2 . . . . . . 1 Recycler 23 | 1 . . 4 2 . 1 2 . 1 . 5 . 1 . 4 2 Mechanic 6 | . 1 . . . . . . 1 2 . . . . . 2 . Operator 8 | . 1 . 1 . . . . . 2 . 2 . . . 2 . Watcher 12 | . 1 . 3 . . . 2 . 1 1 . . . . 4 . Swarmer 62 | . 3 6 6 8 . . 2 12 3 6 3 . . 11 2 . Cutter 3 | . . . . . . . . 3 . . . . . . . . Grunt 94 | . 6 . 8 2 . 3 7 7 9 9 3 . . 12 27 1 Brawler 10 | . . . . . . . 2 . 2 1 . . . . 5 . Duelist 7 | . . . 2 . . . 2 1 . . . . . . 2 . Protector 2 | . . . . . . . . . . . . . . . 2 . Sentry 32 | . . . 9 . . . 3 2 2 3 . . 1 1 6 5 Specialist 3 | . . . . . . . . . 2 . . . . . 1 . Hunter 11 | . . . . . . . 2 . 1 1 1 . . 1 3 2 Programmer 11 | . . . . . . . . 3 . 3 . . . 1 3 1 Infiltrator 1 | . . . . . . . . . . . . . . . 1 . Best Kill Streak 14 | 3 7 3 9 4 . 3 6 7 7 5 5 . 1 8 14 3 Combat Bots Only 11 | . 3 3 5 4 . 3 4 7 5 5 4 . 1 8 11 3 Max Kills in Single Turn 7 | 1 3 3 2 3 . 1 2 5 2 2 3 . 1 3 7 2 Gunslinging 1 | . . . . . . . 1 . 1 1 . . . . . 1 Exploded 6 | . 2 3 2 3 . 1 . 4 . . 3 . . 3 6 . Melee 1 | . . . . . . . . . . 1 . . . 1 . . Uniques/NPCs Destroyed . | . . . . . . . . . . . . . . . . . Combat | -11 -10 -10 -9 -9 -9 -8 -8 -8 -8 -8 -7 -7 -7 -7 -7 -7 -------- Run | Yrd Mat Min Mat Min Exi Min Mat Gar Mat Gar Fac Was Fac Gar Fac Sto Hostile Shots Fired 1541 | . 58 12 142 16 . 6 117 95 73 124 29 . 18 142 554 155 Missed 487 | . 15 2 45 8 . 2 33 22 19 25 7 . 10 37 211 51 Hits 1054 | . 43 10 97 8 . 4 84 73 54 99 22 . 8 105 343 104 Melee 34 | . . . 11 . . . 4 13 1 . . . . . 5 . Projectile 1020 | . 43 10 86 8 . 4 80 60 53 99 22 . 8 105 338 104 AOE 2 | . . . . . . . . 2 . . . . . . . . Critical Strikes 29 | . . . 3 . . . 2 9 5 1 . . . 2 7 . Damage Taken 13299 | . 580 86 1542 133 . 72 1070 1306 907 1259 194 . 44 1252 4139 715 Core 1642 | . 112 9 252 16 . . 114 161 85 188 20 . 4 117 447 117 Absorbed by Shields 782 | . . . . . . . . . . 178 71 . 19 335 16 163 Ignored by Resistances 20 | . . . . . . . . . . . 20 . . . . . Regen/Repaired (Parts) 739 | . . . 370 . . . . 184 67 . . . . . 118 . Core Remaining (%) 46 | 100 . 51 . . . 33 . . . . . . . . . . Volleys Fired 843 | 9 67 4 117 15 4 9 57 80 59 127 33 10 8 72 138 34 Largest 3 | 2 2 1 2 2 1 2 3 3 3 3 3 1 3 3 2 3 Hottest 185 | 70 80 30 83 83 33 83 147 147 145 166 75 5 87 87 140 185 Shots Fired 1672 | 18 132 4 230 26 4 13 163 178 177 240 93 10 18 86 189 91 Gun 1201 | 18 113 . 117 11 . 4 155 173 177 191 91 . 11 29 23 88 Cannon 316 | . 17 . 111 11 . 4 8 . . . . . 4 30 131 . Launcher 49 | . 2 4 2 4 4 5 . 5 . . 1 . . 8 14 . Special 106 | . . . . . . . . . . 49 1 10 3 19 21 3 Kinetic 995 | 9 88 . 115 11 . 4 84 57 118 143 91 . 15 59 129 72 Thermal 520 | 9 42 . 111 11 . 4 79 116 59 48 . . . . 25 16 Explosive 49 | . 2 4 2 4 4 5 . 5 . . 1 . . 8 14 . Electromagnetic 2 | . . . 2 . . . . . . . . . . . . . Robot Hit Streak 35 | 8 7 . 23 6 . 6 17 10 35 12 9 2 9 20 22 7 Robot Miss Streak 7 | 1 5 . 4 3 . 1 3 5 5 4 7 2 2 6 6 6 Penetration Max 1 | . . . . . . . . . 1 1 . . . . 1 . Secondary Targets 25 | . 1 . . . . . 4 5 8 6 . . . . . 1 Max Gunslinging Chain 1 | . 1 . . . . . 1 1 1 1 . . . . . 1 Autonomous 14 | . . . . . . . . . . . . . . . 14 . Shots Hit Robots 1068 | 15 82 . 152 11 4 7 107 103 116 154 51 5 8 90 110 53 Core Hits 535 | 5 33 5 63 16 . 10 44 46 52 44 27 . 8 38 114 30 Critical Kills 3 | . . . . . . . . . . . . . . 1 1 1 Critical Parts Destroyed 13 | 1 . . . . . . . . . 2 . . . 6 3 1 Critical Strikes 50 | 5 3 . . . . . 8 6 5 2 . . . 12 7 2 Burn 26 | 4 3 . . . . . 8 6 5 . . . . . . . Destroy 13 | 1 . . . . . . . . . 2 . . . 4 4 2 Blast 6 | . . . . . . . . . . . . . . 3 3 . Smash 5 | . . . . . . . . . . . . . . 5 . . Melee Attacks 208 | . . . . . 5 . . 58 . 73 . . . 66 5 1 Impact 72 | . . . . . . . . . . . . . . 66 5 1 Slashing 105 | . . . . . . . . 32 . 73 . . . . . . Piercing . | . . . . . . . . . . . . . . . . . Sneak Attacks 29 | . . . . . 4 . . 22 . . . . . 3 . . Combat Hostiles . | . . . . . . . . . . . . . . . . . Follow-up Attacks . | . . . . . . . . . . . . . . . . . Damage Inflicted 30149 | 160 1276 257 2447 589 . 346 1945 2337 2061 2257 1097 . 138 4744 9473 1022 Guns 11728 | 160 724 . 905 52 . 66 1858 1538 2060 2146 874 . 83 162 87 1013 Cannons 7773 | . 157 . 1351 141 . 36 87 . . . . . 55 1138 4808 . Explosions 8300 | . 395 255 173 396 . 244 . 799 . . 214 . . 1335 4489 . Melee 2272 | . . . . . . . . . . 106 . . . 2109 57 . Ramming 76 | . . 2 18 . . . . . 1 5 9 . . . 32 9 Kinetic 13299 | 60 573 . 871 52 . 66 898 523 1310 1426 874 . 138 1300 4529 679 Thermal 6645 | 100 495 . 1391 141 . 36 1047 1015 750 720 . . . . 616 334 Explosive 7823 | . 208 255 133 396 . 244 . 799 . . 214 . . 1335 4239 . Electromagnetic 34 | . . . 34 . . . . . . . . . . . . . Impact 2166 | . . . . . . . . . . . . . . 2109 57 . Slashing 106 | . . . . . . . . . . 106 . . . . . . Piercing . | . . . . . . . . . . . . . . . . . Highest Corruption 25 | . . . 2 2 2 2 . 1 1 1 . 13 12 16 23 25 Average Corruption 5 | . . . 2 2 2 2 . 1 1 1 . 7 12 13 18 24 Corruption Purged 5 | . . . . . . . . . . . . 5 . . . . Corruption Blocked . | . . . . . . . . . . . . . . . . . Effects 308 | . . . 25 15 8 6 . 20 5 13 . 7 8 74 101 26 Message Errors 65 | . . . 6 4 2 1 . 4 . 2 . 2 1 18 19 6 Matter Fused 82 | . . . 5 4 4 3 . 5 4 3 . 2 2 19 25 6 Heat Flow Errors 38 | . . . 5 2 1 . . 1 . 2 . 1 1 12 10 3 Energy Discharges 31 | . . . 2 3 . . . 2 . 1 . 1 1 5 12 4 Parts Rejected 3 | . . . . . . . . . . 1 . . . 1 1 . Parts Fused 4 | . . . 1 . . . . . . . . . . . 2 1 Data Loss (minor) 33 | . . . 3 1 1 2 . 3 1 3 . . 2 11 5 1 Data Loss (major) 15 | . . . 2 1 . . . 2 . . . . . 4 5 1 Misfires 12 | . . . 1 . . . . 2 . . . . 1 2 6 . Alerts 10 | . . . . . . . . 1 . 1 . . . 2 6 . Misdirections 7 | . . . . . . . . . . . . 1 . . 5 1 Weapon Failures 8 | . . . . . . . . . . . . . . . 5 3 Overload Shots . | . . . . . . . . . . . . . . . . . Overflow Damage 1453 | . 94 26 18 21 . . . 60 . . . . . 563 671 . Projectiles 584 | . 13 . 18 . . . . . . . . . . 104 449 . Explosions 498 | . 81 26 . 21 . . . 60 . . . . . 103 207 . Melee 371 | . . . . . . . . . . . . . . 356 15 . Knockbacks 19 | . . . . . . . . . . . . . . 6 13 . Impact 4 | . . . . . . . . . . . . . . 2 2 . Kinetic 15 | . . . . . . . . . . . . . . 4 11 . Secondary . | . . . . . . . . . . . . . . . . . Self-Inflicted Damage 796 | . 31 3 115 48 . . . 114 . . . . . 217 268 . Shots 20 | . 1 1 2 1 . . . 3 . . . . . 4 8 . Rammed . | . . . . . . . . . . . . . . . . . Targets Rammed 12 | . . 1 4 . . . . . 1 2 1 . . . 2 1 Kicked 12 | . . 1 4 . . . . . 1 2 1 . . . 2 1 Crushed . | . . . . . . . . . . . . . . . . . Highest Temperature 493 | 110 180 . 290 286 75 . 297 330 181 327 168 80 109 493 397 196 Average Temperature 79 | 62 58 . 85 109 39 . 115 109 47 92 47 47 52 109 71 69 Received Heat Transfer 4215 | . 261 . 360 36 . 36 396 306 387 447 60 . 12 424 1324 166 Effects 14 | . . . . . . . . 6 . . . . . 5 3 . Shutdowns 1 | . . . . . . . . . . . . . . 1 . . Energy Bleed 3 | . . . . . . . . 1 . . . . . 1 1 . Interference 7 | . . . . . . . . 5 . . . . . . 2 . Short Circuit 1 | . . . . . . . . . . . . . . 1 . . Damage (minor) 2 | . . . . . . . . . . . . . . 2 . . Siege Activations . | . . . . . . . . . . . . . . . . . Martial Activations . | . . . . . . . . . . . . . . . . . Shielding Activations . | . . . . . . . . . . . . . . . . . Robots Disrupted . | . . . . . . . . . . . . . . . . . Combat Hostiles . | . . . . . . . . . . . . . . . . . Robots Corrupted 5 | . . . . . . . . . . . . . . 3 2 . Combat Hostiles 2 | . . . . . . . . . . . . . . 2 . . Parts Fried 6 | . . . . . . . . 1 . . . . . 1 4 . Impact Corruptions 11 | . . . . . . . . . . . . . . 9 2 . Robots Melted 1 | . . . . . . . . 1 . . . . . . . . Combat Hostiles 1 | . . . . . . . . 1 . . . . . . . . Parts Melted 21 | 4 . . 3 . . . 2 5 1 2 . . . . . 4 Heat Transferred 14525 | 592 1149 . 2899 296 . 74 2553 2220 1924 1372 . . . . 746 700 Parts Sabotaged . | . . . . . . . . . . . . . . . . . Parts Stolen . | . . . . . . . . . . . . . . . . . Parts Stripped . | . . . . . . . . . . . . . . . . . Power Chain Reactions 1 | . . . 1 . . . . . . . . . . . . . Alert | -11 -10 -10 -9 -9 -9 -8 -8 -8 -8 -8 -7 -7 -7 -7 -7 -7 ------- Run | Yrd Mat Min Mat Min Exi Min Mat Gar Mat Gar Fac Was Fac Gar Fac Sto Maximum Alert Level 5 | . . . 1 . . . 1 5 4 5 4 1 . 4 5 4 Low Security (%) 39 | 100 100 100 86 100 . 100 74 4 . . . . 100 8 . . Level 1 8 | . . . 13 . . . 25 16 . . . 100 . 17 . . Level 2 3 | . . . . . . . . 17 . . . . . 7 1 . Level 3 22 | . . . . . . . . 29 30 31 70 . . 33 46 82 Level 4 21 | . . . . . . . . 19 69 49 29 . . 33 37 17 Level 5 4 | . . . . . . . . 11 . 18 . . . . 1 . High Security 1 | . . . . . . . . . . . . . . . 12 . Max Security . | . . . . . . . . . . . . . . . . . Peak Influence 2342 | 10 157 91 225 198 . 125 261 2342 1266 1981 1167 358 187 1466 2172 1120 Initial 1141 | . . 3 . 78 . . . 169 1141 750 1039 358 187 92 769 1100 Average 652 | 1 41 20 70 67 . 22 94 934 1123 1295 1072 314 156 814 1192 1064 Influence Increases 11469 | 15 390 172 896 286 . 150 575 2383 621 1571 295 . 35 1424 2330 326 Destroy 0b10 Robot/C 5160 | . 180 120 500 200 . 60 360 720 400 480 140 . 20 600 1200 180 Destroy 0b10 Robot/NC 465 | 15 45 . 80 20 . 5 25 15 45 5 45 . 5 30 115 15 Destroy Leader 964 | . 44 20 168 30 . 10 106 30 96 40 30 . 10 50 248 82 Allied During Kill 279 | . . . . . . . . 122 17 1 . . . 35 104 . Successful Hack 334 | . 19 . 33 . . . 22 30 31 14 12 . . 14 155 4 Select Force Hacks 30 | . . . . . . . . . . . 30 . . . . . Disable Machine 540 | . 60 15 15 . . 60 15 . 15 . 30 . . . 285 45 Anti-Garrison Action 2700 | . . . . . . . . 1350 . 900 . . . 450 . . Destroy Structure 712 | . 27 17 40 36 . 15 2 86 2 101 8 . . 170 208 . Lose Combat Pursuer 285 | . 15 . 60 . . . 45 30 15 30 . . . 75 15 . Influence Decreases 10513 | 15 380 182 694 488 . 150 314 302 1809 744 1252 756 171 90 1624 1542 Entered New Map 5438 | . . 7 . 124 . . . 92 1201 404 942 666 81 40 697 1184 Time Decay 3489 | 15 314 175 604 364 . 140 244 . 368 . 310 90 90 . 577 198 Lost Part 600 | . 20 . 90 . . 10 70 110 20 70 . . . 10 190 10 Lost Ally 640 | . . . . . . . . 100 70 270 . . . 40 160 . Purge Threat 346 | . 46 . . . . . . . 150 . . . . . . 150 Squads Dispatched 50 | . . . 3 . . 1 5 . 6 . 7 . 1 . 24 3 Investigation 9 | . . . 1 . . . . . . . 2 . . . 6 . Extermination 4 | . . . . . . . . . . . 1 . . . 2 1 Reinforcement 15 | . . . 2 . . 1 1 . 3 . 2 . . . 5 1 Assault 17 | . . . . . . . . . 3 . 2 . . . 11 1 Garrison 5 | . . . . . . . 4 . . . . . 1 . . . Intercept . | . . . . . . . . . . . . . . . . . Searches Triggered . | . . . . . . . . . . . . . . . . . Construction Impeded 4 | . . . . . . 1 . . 1 . . . . . 1 1 Haulers Reinforced . | . . . . . . . . . . . . . . . . . Active Scanning Responses . | . . . . . . . . . . . . . . . . . Cargo Convoy Interrupts . | . . . . . . . . . . . . . . . . . Stealth | -11 -10 -10 -9 -9 -9 -8 -8 -8 -8 -8 -7 -7 -7 -7 -7 -7 --------- Run | Yrd Mat Min Mat Min Exi Min Mat Gar Mat Gar Fac Was Fac Gar Fac Sto Distress Signals 14 | . . . 4 . . . 3 . 4 . . . . . 2 1 Communications Jammed . | . . . . . . . . . . . . . . . . . Distress Signals . | . . . . . . . . . . . . . . . . . Times Spotted 399 | . 30 6 40 10 . 3 30 42 33 40 17 6 1 33 94 14 Peak Tracking Total 12 | . 3 3 6 4 9 2 7 7 6 6 4 3 1 6 12 3 Tactical Retreats 17 | . 1 . 4 . . . 2 2 1 2 . . . 4 1 . Traps | -11 -10 -10 -9 -9 -9 -8 -8 -8 -8 -8 -7 -7 -7 -7 -7 -7 ------- Run | Yrd Mat Min Mat Min Exi Min Mat Gar Mat Gar Fac Was Fac Gar Fac Sto Traps Triggered 31 | . 1 . 4 . . . . 4 . 8 1 . . 5 5 3 Indirectly . | . . . . . . . . . . . . . . . . . Trap Hack Attempts . | . . . . . . . . . . . . . . . . . Triggered . | . . . . . . . . . . . . . . . . . Disarmed . | . . . . . . . . . . . . . . . . . Reprogrammed . | . . . . . . . . . . . . . . . . . Reused . | . . . . . . . . . . . . . . . . . Traps Extracted . | . . . . . . . . . . . . . . . . . Installed . | . . . . . . . . . . . . . . . . . Triggered . | . . . . . . . . . . . . . . . . . Objects Rigged 3 | . . . . . . . . . . 2 . . . 1 . . Time Bombs Activated 3 | . . . . . . . . . . 2 . . . 1 . . Exploded 3 | . . . . . . . . . . 2 . . . 1 . . Machines | -11 -10 -10 -9 -9 -9 -8 -8 -8 -8 -8 -7 -7 -7 -7 -7 -7 ---------- Run | Yrd Mat Min Mat Min Exi Min Mat Gar Mat Gar Fac Was Fac Gar Fac Sto Machines Disabled 63 | . 4 1 1 . 4 4 1 11 1 6 2 . . 6 19 3 Max in Single Turn 5 | . 4 1 1 . 2 3 1 2 1 1 1 . . 2 5 1 Garrison Access 3 | . . . . . . . . . . . . . . . 2 1 Garrison Relay 18 | . . . . . . . . 9 . 5 . . . 4 . . Phase Generator 2 | . . . . . . . . 1 . . . . . 1 . . Machines Repaired . | . . . . . . . . . . . . . . . . . Machines Dismantled . | . . . . . . . . . . . . . . . . . Machines Sabotaged . | . . . . . . . . . . . . . . . . . Overloaded Fab Kills . | . . . . . . . . . . . . . . . . . Hacking | -11 -10 -10 -9 -9 -9 -8 -8 -8 -8 -8 -7 -7 -7 -7 -7 -7 --------- Run | Yrd Mat Min Mat Min Exi Min Mat Gar Mat Gar Fac Was Fac Gar Fac Sto Machines Accessed 68 | . 8 1 11 . 2 . 5 3 7 4 4 . 1 2 16 4 Terminals 39 | . 7 . 7 . . . 2 3 4 4 2 . . 2 5 3 Fabricators 4 | . . . . . . . . . . . 1 . . . 3 . Repair Stations 7 | . . . 2 . . . . . 1 . . . . . 4 . Recycling Units 5 | . 1 . 1 . . . 1 . 1 . 1 . . . . . Scanalyzers 4 | . . . 1 . . . 1 . . . . . . . 2 . Garrison Access 6 | . . . . . . . 1 . 1 . . . 1 . 2 1 Total Hacks 186 | . 25 1 36 . 5 . 16 4 17 9 8 . 3 4 51 7 Successful 103 | . 16 1 23 . 5 . 9 2 9 2 3 . 1 1 29 2 Failed 81 | . 8 . 12 . . . 7 2 8 7 5 . 2 3 22 5 Catastrophic 14 | . 2 . 1 . . . 1 1 . 3 1 . . . 3 2 Database Lockouts 2 | . 1 . 1 . . . . . . . . . . . . . Manual 72 | . 20 . 12 . 1 . 7 . 4 1 2 . 2 . 18 5 Terminals 103 | . 23 . 23 . . . 8 4 10 9 3 . . 4 13 6 Fabricators 19 | . . . . . . . . . . . 3 . . . 16 . Repair Stations 19 | . . . 7 . . . . . 2 . . . . . 10 . Recycling Units 13 | . 2 . 2 . . . 3 . 4 . 2 . . . . . Scanalyzers 16 | . . . 4 . . . 3 . . . . . . . 9 . Garrison Access 10 | . . . . . . . 2 . 1 . . . 3 . 3 1 Terminal Hacks 31 | . 6 1 5 . 5 . 2 2 3 2 . . . 1 3 1 Record 4 | . . . . . 4 . . . . . . . . . . . Part Schematic 1 | . 1 . . . . . . . . . . . . . . . Prototype ID Bank 2 | . . . 2 . . . . . . . . . . . . . Open Door 1 | . . 1 . . . . . . . . . . . . . . Branch Access Points 3 | . . . 1 . . . . . 1 . . . . . 1 . Emergency Access Points 2 | . . . . . . . . . . 1 . . . 1 . . Terminal Index 1 | . 1 . . . . . . . . . . . . . . . Unreport Threat 2 | . 1 . . . . . . . 1 . . . . . . . Locate Traps 6 | . 1 . 1 . . . 1 . 1 . . . . . 1 1 Hauler Manifests 1 | . 1 . . . . . . . . . . . . . . . Registered Components 3 | . 1 . 1 . . . . . . . . . . . 1 . Zone Layout 1 | . . . . . . . 1 . . . . . . . . . Garrison Registry 1 | . . . . . . . . 1 . . . . . . . . Patrol Navigation 1 | . . . . . . . . . . 1 . . . . . . Security Stations 1 | . . . . . . . . 1 . . . . . . . . Proto ID Catalog 1 | . . . . . 1 . . . . . . . . . . . Fabricator Hacks 6 | . . . . . . . . . . . . . . . 6 . Network Status 1 | . . . . . . . . . . . . . . . 1 . Load Schematic 3 | . . . . . . . . . . . . . . . 3 . Build 2 | . . . . . . . . . . . . . . . 2 . Repair Station Hacks 12 | . . . 6 . . . . . 2 . . . . . 4 . Scan Component 7 | . . . 3 . . . . . 1 . . . . . 3 . Repair 5 | . . . 3 . . . . . 1 . . . . . 1 . Recycling Unit Hacks 7 | . 1 . 2 . . . 1 . 2 . 1 . . . . . Report Inventory 4 | . 1 . 1 . . . . . 1 . 1 . . . . . Retrieve Components 3 | . . . 1 . . . 1 . 1 . . . . . . . Scanalyzer 12 | . . . 3 . . . 3 . . . . . . . 6 . Insert Component 5 | . . . 1 . . . 1 . . . . . . . 3 . Analyze 5 | . . . 1 . . . 1 . . . . . . . 3 . Retrieve Study 2 | . . . 1 . . . 1 . . . . . . . . . Garrison Access Hacks 7 | . . . . . . . 1 . 1 . . . 1 . 3 1 Unlock Access 3 | . . . . . . . 1 . 1 . . . 1 . . . Seal Access 3 | . . . . . . . . . . . . . . . 2 1 Coupler Status 1 | . . . . . . . . . . . . . . . 1 . Unauthorized Hacks 28 | . 9 . 7 . . . 2 . 1 . 2 . . . 7 . Terminals 19 | . 8 . 7 . . . 1 . 1 . 1 . . . 1 . Track 1 | . . . . . . . . . . . 1 . . . . . Botnet 6 | . 2 . 2 . . . 1 . . . . . . . 1 . Operators 2 | . 1 . . . . . . . 1 . . . . . . . Skim 10 | . 5 . 5 . . . . . . . . . . . . . Fabricators 6 | . . . . . . . . . . . . . . . 6 . Prioritize 2 | . . . . . . . . . . . . . . . 2 . Liberate 1 | . . . . . . . . . . . . . . . 1 . Haulers 1 | . . . . . . . . . . . . . . . 1 . Recompile 2 | . . . . . . . . . . . . . . . 2 . Repair Stations . | . . . . . . . . . . . . . . . . . Recycling Units 3 | . 1 . . . . . 1 . . . 1 . . . . . Recyclers 1 | . 1 . . . . . . . . . . . . . . . Mask 1 | . . . . . . . 1 . . . . . . . . . Tunnel 1 | . . . . . . . . . . . 1 . . . . . Scanalyzers . | . . . . . . . . . . . . . . . . . Garrison Access . | . . . . . . . . . . . . . . . . . Data Cores Recovered 3 | . . . . . . . . . 1 . . . . . 2 . Used 1 | . . . . . . . . . . . . . . . 1 . Hacking Detections 56 | . 6 . 8 . . . 5 3 7 4 4 . 1 2 13 3 Full Trace Events 7 | . . . . . . . 1 . . 1 1 . . . 4 . Feedback Events . | . . . . . . . . . . . . . . . . . Feedback Blocked . | . . . . . . . . . . . . . . . . . Robot Schematics Acquired . | . . . . . . . . . . . . . . . . . Robots Built . | . . . . . . . . . . . . . . . . . Authchips . | . . . . . . . . . . . . . . . . . Time . | . . . . . . . . . . . . . . . . . Total Robot Build Rating . | . . . . . . . . . . . . . . . . . Part Schematics Acquired 5 | . 1 . 1 . . . 1 . . . . . . . 2 . Parts Built 4 | . . . . . . . . . . . . . . . 4 . Authchips 2 | . . . . . . . . . . . . . . . 2 . Time 192 | . . . . . . . . . . . . . . . 192 . Total Part Build Rating 32 | . . . . . . . . . . . . . . . 32 . Part Studies Acquired 2 | . . . 1 . . . 1 . . . . . . . . . Parts Repaired 4 | . . . 3 . . . . . . . . . . . 1 . Time 137 | . . . 90 . . . . . 31 . . . . . 16 . Parts Recycled . | . . . . . . . . . . . . . . . . . Recycled Matter . | . . . . . . . . . . . . . . . . . Retrieved Matter . | . . . . . . . . . . . . . . . . . Retrieved Components 19 | . . . 6 . . . 10 . 3 . . . . . . . Parts Scanalyzed 4 | . . . 1 . . . 1 . . . . . . . 2 . Part Schematics Acquired 4 | . . . 1 . . . 1 . . . . . . . 2 . Parts Damaged . | . . . . . . . . . . . . . . . . . Bothacking | -11 -10 -10 -9 -9 -9 -8 -8 -8 -8 -8 -7 -7 -7 -7 -7 -7 ------------ Run | Yrd Mat Min Mat Min Exi Min Mat Gar Mat Gar Fac Was Fac Gar Fac Sto Used RIF Installer 4 | . . . . . . . . 1 . 1 . . . 2 . . Hotswap 1 | . . . . . . . . . . 1 . . . . . . Watcher Feeds 1 | . . . . . . . . . . . . . . 1 . . Autoassimilate 1 | . . . . . . . . . . . . . . 1 . . Robots Hacked 50 | . . . . . 4 . . 5 . 12 1 6 1 6 14 1 Non-combat 20 | . . . . . 3 . . 2 . 1 1 . 1 . 11 1 Combat 30 | . . . . . 1 . . 3 . 11 . 6 . 6 3 . Robot Hacks Applied 69 | . . . . . 4 . . 9 . 24 1 6 1 7 15 2 parse_system 6 | . . . . . 4 . . . . 2 . . . . . . no_distress 1 | . . . . . . . . . . 1 . . . . . . generate_echo 1 | . . . . . . . . . . 1 . . . . . . start_evac 1 | . . . . . . . . . . 1 . . . . . . find_chute 1 | . . . . . . . . . . . 1 . . . . . ignore_repairs 6 | . . . . . . . . . . . . . . . 6 . map_walls 1 | . . . . . . . . . . . . . 1 . . . drop_inventory 2 | . . . . . . . . . . . . . . . 2 . ignore_parts 2 | . . . . . . . . . . . . . . . 2 . release_backups 2 | . . . . . . . . 1 . 1 . . . . . . deconstruct_bot 7 | . . . . . . . . 2 . 4 . . . . 1 . purge_threat 1 | . . . . . . . . . . . . . . . . 1 reprogram_traps 1 | . . . . . . . . . . . . . . . . 1 ignore_targets 6 | . . . . . . . . . . . . 6 . . . . scatter_targeting 1 | . . . . . . . . . . 1 . . . . . . overload_power 1 | . . . . . . . . 1 . . . . . . . . amplify_resonance 1 | . . . . . . . . . . . . . . . 1 . wipe_record 1 | . . . . . . . . . . 1 . . . . . . disable_weapons 1 | . . . . . . . . . . . . . . 1 . . reboot_system 1 | . . . . . . . . . . . . . . 1 . . overwrite_iff 6 | . . . . . . . . . . 3 . . . 2 1 . streamctrl_low 3 | . . . . . . . . 1 . 2 . . . . . . streamctrl_high 1 | . . . . . . . . . . . . . . . 1 . formatsys_low 2 | . . . . . . . . 1 . 1 . . . . . . formatsys_high 13 | . . . . . . . . 3 . 6 . . . 3 1 . Relay Couplers Released 75 | . . . . . . . . 36 . 21 . . . 16 2 . Machine Destruction 75 | . . . . . . . . 36 . 21 . . . 16 2 . Attached 20 | . . . . . . . . 4 . 8 . 1 . 3 4 . Fabnet Peak Effective % . | . . . . . . . . . . . . . . . . . Robots Rewired 8 | . . . . . . . . 6 . . . . . 2 . . Allies Hacked . | . . . . . . . . . . . . . . . . . Hacks Repelled . | . . . . . . . . . . . . . . . . . Allies | -11 -10 -10 -9 -9 -9 -8 -8 -8 -8 -8 -7 -7 -7 -7 -7 -7 -------- Run | Yrd Mat Min Mat Min Exi Min Mat Gar Mat Gar Fac Was Fac Gar Fac Sto Total Allies 32 | . . . . . . . . 10 . 10 . . . 9 3 . Largest Group 9 | . . . . . . . . 9 4 2 . . . 5 5 . Highest-Rated Group 234 | . . . . . . . . 133 56 36 . . . 234 234 . Highest-Rated Ally 90 | . . . . . . . . 23 20 20 . . . 62 90 . Total Orders 23 | . . . . . . . . 5 3 5 . . . 2 8 . STAY 8 | . . . . . . . . 2 1 2 . . . 1 2 . FOLLOW 3 | . . . . . . . . 1 . . . . . 1 1 . AID 6 | . . . . . . . . 2 2 2 . . . . . . EXPLORE 5 | . . . . . . . . . . 1 . . . . 4 . RETURN 1 | . . . . . . . . . . . . . . . 1 . Ally Attacks 204 | . . . . . . . . 72 12 29 . . . 35 56 . Total Damage 3355 | . . . . . . . . 957 98 293 . . . 788 1219 . Kills 29 | . . . . . . . . 10 1 1 . . . 4 13 . Allies Corrupted 1 | . . . . . . . . . 1 . . . . . . . Allies Melted . | . . . . . . . . . . . . . . . . . Intel | -11 -10 -10 -9 -9 -9 -8 -8 -8 -8 -8 -7 -7 -7 -7 -7 -7 ------- Run | Yrd Mat Min Mat Min Exi Min Mat Gar Mat Gar Fac Was Fac Gar Fac Sto Active Infowar (turns) 2793 | 23 1243 915 348 . . . . . . . . . . . 257 7 Optics 221 | . . . 221 . . . . . . . . . . . . . Structural 76 | . . . 76 . . . . . . . . . . . . . Seismic 2308 | 23 1243 915 127 . . . . . . . . . . . . . T.N.C. 7 | . . . . . . . . . . . . . . . . 7 Jamming 257 | . . . . . . . . . . . . . . . 257 . Robot Analysis Total . | . . . . . . . . . . . . . . . . . Derelict Logs Recovered 4 | . . 2 . 2 . . . . . . . . . . . . Drone Launches 16 | . . . . . . . . . . 8 . . . . 8 . Drone Recoveries . | . . . . . . . . . . . . . . . . . Exploration | -11 -10 -10 -9 -9 -9 -8 -8 -8 -8 -8 -7 -7 -7 -7 -7 -7 ------------- Run | Yrd Mat Min Mat Min Exi Min Mat Gar Mat Gar Fac Was Fac Gar Fac Sto Turns Passed 20076 | 112 1243 915 2839 1145 583 853 611 3054 851 2582 685 192 187 1800 2013 411 Spaces Moved 8425 | 67 510 341 1063 594 301 440 210 928 296 984 318 141 126 808 1130 168 Core 17 | 10 . . 7 . . . . . . . . . . . . . Treads . | . . . . . . . . . . . . . . . . . Legs 8408 | 57 510 341 1056 594 301 440 210 928 296 984 318 141 126 808 1130 168 Wheels . | . . . . . . . . . . . . . . . . . Hover . | . . . . . . . . . . . . . . . . . Flight . | . . . . . . . . . . . . . . . . . Fastest Speed 50 | 50 120 260 185 185 185 185 182 180 182 175 114 114 114 114 107 112 Average Speed 185 | 109 194 260 205 185 185 185 183 263 206 187 177 114 115 153 118 152 Slowest Speed 800 | 120 400 260 800 185 185 185 186 470 260 252 187 114 116 250 255 185 Overloaded Moves . | . . . . . . . . . . . . . . . . . Propulsion Burnouts . | . . . . . . . . . . . . . . . . . Robots Hopped . | . . . . . . . . . . . . . . . . . Potential Cave-ins . | . . . . . . . . . . . . . . . . . Cave-ins Triggered . | . . . . . . . . . . . . . . . . . Exploration Rate (%) 58 | 6 63 82 82 91 70 83 23 98 34 90 12 90 3 82 51 41 Regions Visited 16 Branch Regions 5 Pre-discovered Areas 7 | . 2 . 1 2 1 . . . . . 1 . . . . . Known Exits Taken 6 | . . . 1 . . 1 1 . 1 . . . 1 . 1 . Unknown Exits Taken 5 | 1 1 1 . 1 1 . . . . . . . . . . . Scrap Searched 5 | . . 2 . 2 . 1 . . . . . . . . . . Spaces Dug 186 | . . 25 . 17 . . . 36 . 11 . . . 48 49 . Terrain Destroyed 675 | . 23 31 43 39 23 21 . 90 . 13 8 . . 151 233 . Melee 31 | . . . . . . . . 9 . 11 . . . 8 3 . Projectile 60 | . . . . . . . . . . 2 . . . 7 51 . AOE 583 | . 23 31 43 39 23 21 . 81 . . 8 . . 135 179 . Terrain Rammed . | . . . . . . . . . . . . . . . . . Walls Destroyed . | . . . . . . . . . . . . . . . . . Machines Disabled . | . . . . . . . . . . . . . . . . . Actions | -11 -10 -10 -9 -9 -9 -8 -8 -8 -8 -8 -7 -7 -7 -7 -7 -7 --------- Run | Yrd Mat Min Mat Min Exi Min Mat Gar Mat Gar Fac Was Fac Gar Fac Sto Total 11237 | 86 649 362 1504 614 323 466 324 1333 427 1444 386 166 157 1166 1574 256 Wait 844 | 2 42 4 226 . . 12 10 153 22 122 2 5 1 98 125 20 Move 8412 | 66 509 340 1062 593 300 439 210 927 296 983 318 140 125 807 1129 168 Hop . | . . . . . . . . . . . . . . . . . Pick Up 181 | 2 17 5 20 . 4 . 16 21 7 21 6 3 3 15 37 4 Fast Attach 109 | 7 1 . 17 . . . 4 14 7 12 4 . 3 16 17 7 Attach 75 | . 4 . 6 . 2 . 7 10 1 8 2 1 1 4 28 1 Detach 18 | . . . 2 . . . . . . 1 . . . 2 12 1 Swap 225 | . 4 7 21 5 2 4 7 27 12 33 9 4 7 30 43 10 Drop 218 | . 5 1 29 1 6 2 13 23 22 26 11 3 9 31 32 4 Fire 843 | 9 67 4 117 15 4 9 57 80 59 127 33 10 8 72 138 34 Melee 208 | . . . . . 5 . . 58 . 73 . . . 66 5 1 Ram 1 | . . . . . . . . . . . . . . . 1 . Kick 12 | . . 1 4 . . . . . 1 2 1 . . . 2 1 Crush . | . . . . . . . . . . . . . . . . . Escape Stasis 83 | . . . . . . . . 20 . 30 . . . 23 5 5 Rewire 2 | . . . . . . . . . . 2 . . . . . . Trap 6 | . . . . . . . . . . 4 . . . 2 . . Miscellaneous . | . . . . . . . . . . . . . . . . . Route ------- -11/Scrapyard -10/Materials (discovered 2 exits: *Mat / *Min) -10/Mines -9/Materials (discovered 4 exits: *Mat x3 / *Min) -9/Mines (discovered 3 exits: *Mat x2 / *Exi) -9/Exiles (discovered 2 exits: [*Min x2]) -8/Mines -8/Materials (discovered 3 exits: Fac x2 / Gar) -8/Garrison (discovered 3 exits: *Mat x3) -8/Materials -8/Garrison (discovered 4 exits: *Fac x3 / [*Mat]) -7/Factory -7/Waste -7/Factory -7/Garrison (discovered 2 exits: *Fac x2) -7/Factory (discovered 5 exits: [*Fac x2] / *Sto / *Low x2) -7/Storage History --------- Turn | Location | Event 6 | -11/Scrapyard | Discovered new exit (range 14) 113 | -11/Scrapyard | Entered Materials 304 | -10/Materials | Build established: Mutant 327 | -10/Materials | Discovered new exit (range 15) 455 | -10/Materials | Central database locked down 551 | -10/Materials | Discovered new exit (range 8) 1246 | -10/Materials | Learned 2 Mines zone layouts 1341 | -10/Materials | Learned location of Mines (-9) 1356 | -10/Materials | Entered Mines 1512 | -10/Mines | Found the Drone Emporium 1526 | -10/Mines | Learned Materials emergency access door positions 1534 | -10/Mines | Found Prototype Device 1703 | -10/Mines | Received a Rocket Launcher from a helpful Derelict 2183 | -10/Mines | Learned Materials terminal intel 2240 | -10/Mines | Discovered new exit (range 10) 2271 | -10/Mines | Entered Materials 2271 | -9/Materials | Evolved 2 slots: Propulsion x1, Utility x1 2273 | -9/Materials | Loaded intel: 12 terminal locations 2874 | -9/Materials | Build established: Scavenger-Mutant 3022 | -9/Materials | Discovered new exit (range 6) 3194 | -9/Materials | Build established: Mutant 3245 | -9/Materials | Discovered new exit (range 12) 3512 | -9/Materials | Repaired Hcp. Storage Unit 3691 | -9/Materials | Core integrity fell below 50% 3827 | -9/Materials | Identified Decoy Drone Bay 3858 | -9/Materials | Repaired Imp. Ion Engine 3908 | -9/Materials | Repaired Imp. Aluminum Leg 3984 | -9/Materials | Discovered new exit (range 13) 4438 | -9/Materials | Identified exit to Mines 4538 | -9/Materials | Central database locked down 4682 | -9/Materials | Loaded intel: 2 repair station locations 4752 | -9/Materials | Identified exit to Materials 4868 | -9/Materials | Learned location of 2 exits from Materials 4911 | -9/Materials | Learned Storage emergency access door positions 4998 | -9/Materials | Learned location of Zion (-6) 5041 | -9/Materials | Learned Storage stockpile data 5092 | -9/Materials | Learned Storage emergency access door positions 5110 | -9/Materials | Entered Mines 5366 | -9/Mines | Deemed a non-threat by the Exiles lab entrance 5366 | -9/Mines | Discovered new exit (range 5) 6140 | -9/Mines | Learned location of Storage (-7) 6255 | -9/Mines | Entered Exiles 6285 | -9/Exiles | Discovered new exit (range 15) 6312 | -9/Exiles | Met 8R-AWN 6342 | -9/Exiles | Met EX-HEX 6410 | -9/Exiles | Met EX-DEC 6501 | -9/Exiles | Met EX-BIN 6533 | -9/Exiles | Aligned with FarCom system 6534 | -9/Exiles | Given EX-Vault access code 6579 | -9/Exiles | Opened EX-Vault 6593 | -9/Exiles | Found AWS/Autocannon 6596 | -9/Exiles | Found PSU Rigger 6632 | -9/Exiles | Warned to stay clear of 0b10 Research branches 6762 | -9/Exiles | Discovered new exit (range 10) 6802 | -9/Exiles | Attacked by the Exiles 6838 | -9/Exiles | Stole two prototypes: PSU Rigger, AWS/Autocannon 6838 | -9/Exiles | Entered Mines 6933 | -8/Mines | Found DCF Scrap (17 items) 6972 | -8/Mines | Discovered exit to Materials (range 14) 7691 | -8/Mines | Entered Materials 7691 | -8/Materials | Evolved 2 slots: Propulsion x1, Weapon x1 7692 | -8/Materials | Identified exit to Factory 7968 | -8/Materials | Garrison activated, responded to threat 8185 | -8/Materials | Lost 7 parts (1p1n3u2w) 8284 | -8/Materials | Garrison activated, responded to threat 8302 | -8/Materials | Identified exit to Garrison 8302 | -8/Materials | Entered Garrison 8419 | -8/Garrison | Installed Relay Interface Framework 8442 | -8/Garrison | Triggered checkpoint 8466 | -8/Garrison | Garrison Relay disabled 8944 | -8/Garrison | Triggered checkpoint 8990 | -8/Garrison | Destroyed 7 combat bots 8996 | -8/Garrison | Lost 4 parts (2n1u1w) 9086 | -8/Garrison | Lost 3 parts (1p1n1w) 9150 | -8/Garrison | Triggered checkpoint 9209 | -8/Garrison | Discovered new exit (range 3) 9248 | -8/Garrison | Build established: Bothacker-Gunner 9303 | -8/Garrison | Phase Generator disabled 9381 | -8/Garrison | Garrison Relay disabled 9502 | -8/Garrison | Triggered checkpoint 9526 | -8/Garrison | Triggered checkpoint 9622 | -8/Garrison | Discovered new exit (range 13) 9780 | -8/Garrison | Build established: Bothacker-Mutant 9814 | -8/Garrison | Triggered checkpoint 9902 | -8/Garrison | Garrison Relay disabled 9940 | -8/Garrison | Discovered new exit (range 57) 9940 | -8/Garrison | Discovered new exit (range 36) 9940 | -8/Garrison | Discovered new exit (range 7) 10202 | -8/Garrison | Build established: Bothacker-Tank 10593 | -8/Garrison | Build established: Commander-Mutant 10984 | -8/Garrison | Triggered checkpoint 11001 | -8/Garrison | Garrison Relay disabled 11044 | -8/Garrison | Triggered checkpoint 11057 | -8/Garrison | Lost 3 allies 11062 | -8/Garrison | Garrison Relay disabled 11119 | -8/Garrison | Learned Materials security intel 11180 | -8/Garrison | Garrison Relay disabled 11211 | -8/Garrison | Garrison Relay disabled 11215 | -8/Garrison | Garrison Relay disabled 11251 | -8/Garrison | Garrison Relay disabled 11356 | -8/Garrison | Entered Materials 11356 | -8/Materials | Accompanied by 4 allies 11571 | -8/Materials | Lost 3 allies 11756 | -8/Materials | First assault squad dispatched 11811 | -8/Materials | Core integrity fell below 50% 11818 | -8/Materials | Build established: Tank 12136 | -8/Materials | Build established: Scavenger-Tank 12207 | -8/Materials | Identified exit to Garrison 12207 | -8/Materials | Entered Garrison 12281 | -8/Garrison | Triggered checkpoint 12465 | -8/Garrison | Garrison Relay disabled 12764 | -8/Garrison | Build established: Scavenger-Mutant 12887 | -8/Garrison | Triggered checkpoint 13068 | -8/Garrison | Garrison Relay disabled 13085 | -8/Garrison | Triggered checkpoint 13109 | -8/Garrison | Core integrity fell below 20% 13160 | -8/Garrison | Discovered exit to Factory (range 13) 13163 | -8/Garrison | Discovered new exit (range 21) 13229 | -8/Garrison | Triggered checkpoint 13246 | -8/Garrison | Discovered exit to Factory (range 79) 13255 | -8/Garrison | Triggered checkpoint 13255 | -8/Garrison | Triggered checkpoint 13255 | -8/Garrison | Triggered checkpoint 13432 | -8/Garrison | Lost 3 allies 13571 | -8/Garrison | Discovered exit to Factory (range 14) 13673 | -8/Garrison | Triggered checkpoint 13678 | -8/Garrison | Build established: Scavenger-Gunner 13732 | -8/Garrison | Garrison Relay disabled 13769 | -8/Garrison | Garrison Relay disabled 13923 | -8/Garrison | Garrison Relay disabled 14153 | -8/Garrison | Triggered checkpoint 14745 | -8/Garrison | Expanded RIF knowledge: Hotswap 14789 | -8/Garrison | Entered Factory 14789 | -7/Factory | Evolved 2 slots: Propulsion x1, Utility x1 14790 | -7/Factory | Identified exit to Storage 15189 | -7/Factory | First assault squad dispatched 15321 | -7/Factory | Build established: Scavenger-Tank 15474 | -7/Factory | Sucked down chute 15474 | -7/Factory | Entered Waste 15489 | -7/Waste | EMP discharged 15506 | -7/Waste | Found Imp. Powered Armor 15515 | -7/Waste | Spotted C-40 Crusher 15525 | -7/Waste | Spotted C-40 Crusher 15531 | -7/Waste | Spotted C-40 Crusher 15538 | -7/Waste | Spotted C-40 Crusher 15589 | -7/Waste | EMP discharged 15589 | -7/Waste | System corruption reached 10% 15595 | -7/Waste | Spotted C-40 Crusher 15607 | -7/Waste | Spotted C-40 Crusher 15633 | -7/Waste | Discovered new exit (range 12) 15666 | -7/Waste | Entered Factory 15736 | -7/Factory | Identified exit to Garrison 15775 | -7/Factory | Garrison activated, responded to threat 15853 | -7/Factory | Entered Garrison 15927 | -7/Garrison | Triggered checkpoint 16141 | -7/Garrison | Expanded RIF knowledge: Watcher Feeds 16186 | -7/Garrison | Garrison Relay disabled 16283 | -7/Garrison | Triggered checkpoint 16419 | -7/Garrison | Triggered checkpoint 16430 | -7/Garrison | Garrison Relay disabled 16470 | -7/Garrison | Destroyed 8 combat bots 16645 | -7/Garrison | Garrison Relay disabled 16981 | -7/Garrison | Discovered new exit (range 9) 17041 | -7/Garrison | Phase Generator disabled 17331 | -7/Garrison | Triggered checkpoint 17370 | -7/Garrison | Expanded RIF knowledge: Autoassimilate 17403 | -7/Garrison | Discovered new exit (range 10) 17419 | -7/Garrison | Triggered checkpoint 17459 | -7/Garrison | Found embedded Infiltrators 17463 | -7/Garrison | Garrison Relay disabled 17653 | -7/Garrison | Entered Factory 17653 | -7/Factory | Accompanied by 5 allies 17702 | -7/Factory | Discovered new exit (range 62) 17948 | -7/Factory | Identified exit to Lower Caves 18000 | -7/Factory | Repaired Hyp. Gauss Rifle 18025 | -7/Factory | Build established: Bothacker-Mutant 18453 | -7/Factory | First assault squad dispatched 18773 | -7/Factory | Build established: Scavenger-Gunner 18852 | -7/Factory | Discovered new exit (range 11) 19256 | -7/Factory | Fabricated Biometal Leg? 19364 | -7/Factory | Fabricated Biometal Leg (x2) 19411 | -7/Factory | Core integrity fell below 50% 19413 | -7/Factory | Destroyed 11 combat bots 19422 | -7/Factory | High security lockdown imminent 19502 | -7/Factory | High security lockdown engaged 19585 | -7/Factory | Destroyed 8 combat bots 19610 | -7/Factory | Discovered new exit (range 7) 19640 | -7/Factory | Core integrity fell below 20% 19666 | -7/Factory | Entered Storage 19674 | -7/Storage | Lost 10 parts (1p5n1u3w) 20066 | -7/Storage | First assault squad dispatched 20077 | -7/Storage | Destroyed by Y-54 Guardian with Gatling Laser Last Messages --------------- 20037_ P-60 Hacker destroyed. 20037_ ALERT: Construction progress impeded, dispatching reinforcements to local area. 20041_ ,&V34A:BO IE8FXK7QWAQAEUI&&7U/J: 20050_ U-05 Engineer repairs door. 20050_ R-06 Scavenger collects Gravmag System. 20051_ Connecting with Terminal... >>Traps(Locate) Found 8 traps in 2 arrays: 6x Heavy Explosive Trap 2x Blade Trap Map updated. 20055_ Dropped Imp. Shield Generator. 20056_ System corrupted: Heat flow error (+268). 20056_ Acquired Core Analyzer. 20066_ ALERT: Unidentified disturbance in Zone 3W, assault force dispatched. 20066_ K-01 Serf collects debris. 20074_ System corrupted: Component data lost. 20074_ R-06 Scavenger destroyed. Map ----- +----------------------------------------------------+ | ??????????????????????????????????????????? | | ?????????????????????????? ???????????????? | | ????????????????????????? #??????????????? | | ????????????????????????? #??????????????? | | ????????????????????????? +??????????????? | | ????????????????????????? #??????????????? | | ???????#######??????????# #??????????????? | | ???##### #??????????# #??????????????? | | ???? #??????????# #??????????????? | | ????? #??????????# #??????????????? | | ?????? ############ ##?????????????? | | ???????# ## * ^#?????????????? | | ????????# ### % ^#?????????????? | | ????????#!%= ^ ^ = / ?????? | | ????????# = #?????????????? | | ????????# ^ !! #?????????????? | | ????????# """ """ #?????????????? | | ????????# """ """ ! #?????????????? | | ????????#^^|"" """ ^ #?????????????? | | ????????#|!% "T" #?????????????? | | ????????#%= """ #?????????????? | | ????????#! #?????????????? | | ????????#! #?????????????? | | ????????# #####+###### #?????????????? | | ????????#!! #??# T#?###/########????????? | | ????????#= #??#" "##?# @ =!= Y #????????? | | ????????# #??#!!!#??# =%= ##????????? | | ????????# #??#!!!#??# *=! """???????? | | ????????# #??#####??# """ """ Y"???????? | | ####????# #?????????# """ """ """#??????? | | #"""#???# #?????????# """ """ ####??????? | | #"T"##### #??######?# #?????????? | | # #? ??# ??????????? | | # #? ??#####"T"##??????????? | | """ #%=!# """ ""????????###???????????? | | """ #=| # """ ""??????????????????????? | | """ + [!+ """ ""??????????????????????? | | """ #== # #???????????????????? | | """ # * # #???????????????????? | | # #? #???????????????????? | | # #?###### ##???????????????????? | | ####### # #?????????????????????????????? | | T ""##### #?????###########?????????????? | | ![ # #?????# #?????????????? | | """ ! # #?????# T #?????????????? | | "" [ #! # R" # #?????????????? | | "" [+ + """ #!! #?????????????? | | * != #= # "" #! """ #?????????????? | | ! !* # #?? #! """ #?????????????? | | # " " ### #???? # """ #?????????????? | +----------------------------------------------------+ Best States ------------- Heat Dissipation 64 Coolant Potential 65 Energy Generation 21 Energy Capacity 310 Matter Stores 300 Matter Capacity 300 Sight Range 18 Terrain Scan Density 10 Jamming Range 12 Armor Coverage 400 Resistance: TH 10 Evasion (%) 55 Core Analysis 6 Offensive Hacking 20 Relay Coupler Types 2 Relay Coupler Value 49 Authchip Count 2 Item Schematics ----------------- Hcp. Storage Unit | -10/Materials | Hacked Imp. Utility Shielding | -9/Materials | Scanalyzed Hacking Suite | -8/Materials | Scanalyzed Hvy. Mass Driver | -7/Factory | Scanalyzed Biometal Leg | -7/Factory | Scanalyzed Robot Schematics ------------------ None Fabricated ------------ Biometal Leg | x2 | -7/Factory | Authchip Biometal Leg | x2 | -7/Factory | Authchip Repaired ---------- Hcp. Storage Unit | 39% | -9/Materials Imp. Ion Engine | 42% | -9/Materials Imp. Aluminum Leg | 73% | -9/Materials Hyp. Gauss Rifle | 15% | -7/Factory Studied --------- Imp. Aluminum Leg | -9/Materials | Hacked Carbon-fiber Leg | -8/Materials | Hacked Alien Tech Used ----------------- None Achievements -------------- None Challenges ------------ None Game ------ Seed UtilityAntimatterWings Manual? 0 Play Time 03:28:45 Cumulative 1075.6 hours Start 2025.11.17 @ 02:04:31 End 2025.11.17 @ 17:07:54 Sessions 3 Manual Loads 0 Difficulty Rogue Special Mode None Game No. 384 Rogue 379 Adventurer 4 Explorer 1 Win Type - Total 23 Types 13/3/1/2/0/1/0/0/2/1 Lore% 96 Gallery% 94 Achievement% 80 Wizard Run 0 Options --------- Layout 0 ASCII 0 Keyboard 0 Movement Numpad Keybinds 0 Fullscreen 2 Font 18/SmallcapsGlow Map View 76x50 Zoom Use 7% Tactical HUD 1 Map Filters NONE Filters NONE Steam 1 RUN: 2d0d87a0-9e23-4f04-9c91-8c6b16919bfa